fUST/lending_fUST_20251202
["ID","MTS","AMOUNT","RATE_DAILY","PERIOD"]
[395368864,1764676260608,-2464.17471156,8.368e-05,2]
[395368865,1764676264054,496.75997813,8.284e-05,2]
[395368866,1764676276470,-300.0,8.451e-05,2]
[395368867,1764676276498,-500.0,8.452e-05,2]
[395368868,1764676276526,-500.0,8.452e-05,2]
[395368869,1764676276555,-500.0,8.452e-05,2]
[395368870,1764676276582,-405.40284365,8.452e-05,2]
[395368871,1764676276610,-500.0,8.452e-05,2]
[395368872,1764676276637,-500.0,8.452e-05,2]
[395368873,1764676276663,-500.0,8.452e-05,2]
[395368874,1764676276690,-500.0,8.452e-05,2]
[395368875,1764676276716,-500.0,8.452e-05,2]
[395368876,1764676276742,-89.2043127,8.452e-05,2]
[395368877,1764676276889,-410.7956873,8.452e-05,2]
[395368878,1764676276915,-500.0,8.452e-05,2]
[395368879,1764676276959,-299.70396044,8.452e-05,2]
[395368880,1764676276990,-500.0,8.452e-05,2]
[395368881,1764676277020,-500.0,8.452e-05,2]
[395368882,1764676277049,-500.0,8.452e-05,2]
[395368883,1764676277078,-260.3102017,8.452e-05,2]
[395368884,1764676277107,-593.98789769,8.452e-05,2]
[395368885,1764676277135,-500.0,8.452e-05,2]
[395368886,1764676277163,-530.96710835,8.452e-05,2]
[395368887,1764676277193,-371.90304655,8.452e-05,2]
[395368888,1764676288800,-64.67419594,8.452e-05,2]
[395368889,1764676288828,-500.0,8.452e-05,2]
[395368890,1764676288855,-500.0,8.452e-05,2]
[395368891,1764676288882,-500.0,8.452e-05,2]
[395368892,1764676288909,-500.0,8.452e-05,2]
[395368893,1764676289116,-500.0,8.452e-05,2]
[395368894,1764676289143,-500.0,8.452e-05,2]
[395368895,1764676289169,-577.9867768,8.452e-05,2]
[395368896,1764676289200,-500.0,8.452e-05,2]
[395368897,1764676289228,-500.0,8.452e-05,2]
[395368898,1764676289257,-200.0,8.452e-05,2]
[395368899,1764676289383,-500.0,8.452e-05,2]
[395368900,1764676289409,-500.0,8.452e-05,2]
[395368901,1764676289436,-500.0,8.452e-05,2]
[395368902,1764676289615,-314.68805452,8.453e-05,2]
[395368903,1764676289634,-7000.01,8.453e-05,2]
[395368904,1764676289651,-10000.01,8.453e-05,2]
[395368905,1764676301323,-10000.01,8.453e-05,2]
[395368907,1764676312738,-4377.08667267,8.368e-05,2]
[395368908,1764676312759,-1245.83665466,8.368e-05,2]
[395368911,1764676324440,214.70003935,8.367e-05,2]
[395368913,1764676333427,-300.0,8.451e-05,2]
[395368914,1764676333456,-500.0,8.452e-05,2]
[395368915,1764676333485,-500.0,8.452e-05,2]
[395368916,1764676333512,-500.0,8.452e-05,2]
[395368917,1764676333541,-500.0,8.452e-05,2]
[395368918,1764676333568,-500.0,8.452e-05,2]
[395368919,1764676333596,-500.0,8.452e-05,2]
[395368920,1764676333623,-500.0,8.452e-05,2]
[395368921,1764676333661,-500.0,8.452e-05,2]
[395368922,1764676333690,-648.42275751,8.452e-05,2]
[395368923,1764676337191,103.16448498,8.452e-05,2]
[395368924,1764676337216,396.83551502,8.452e-05,2]
[395368925,1764676337251,500.0,8.452e-05,2]
[395368926,1764676337282,500.0,8.452e-05,2]
[395368927,1764676337316,500.0,8.452e-05,2]
[395368928,1764676337366,500.0,8.452e-05,2]
[395368929,1764676337396,500.0,8.452e-05,2]
[395368930,1764676337426,500.0,8.452e-05,2]
[395368931,1764676337455,500.0,8.452e-05,2]
[395368932,1764676337485,500.0,8.452e-05,2]
[395368933,1764676337518,500.0,8.452e-05,2]
[395368934,1764676337551,363.65740737,8.452e-05,2]
[395368935,1764676337580,500.0,8.452e-05,2]
[395368936,1764676337884,500.0,8.452e-05,2]
[395368937,1764676337915,500.0,8.452e-05,2]
[395368938,1764676337945,500.0,8.452e-05,2]
[395368939,1764676337974,500.0,8.452e-05,2]
[395368940,1764676338182,500.0,8.452e-05,2]
[395368941,1764676338220,295.66871513,8.452e-05,2]
[395368942,1764676338249,500.0,8.452e-05,2]
[395368943,1764676338289,500.0,8.452e-05,2]
[395368944,1764676338320,443.84836248,8.452e-05,2]
[395368945,1764676349737,-167.00628676,8.367e-05,2]
[395368946,1764676349767,-56.15163752,8.452e-05,2]
[395368947,1764676349795,-500.0,8.452e-05,2]
[395368948,1764676349824,-500.0,8.452e-05,2]
[395368949,1764676349853,-500.0,8.452e-05,2]
[395368950,1764676370961,500.0,8.452e-05,2]
[395368951,1764676370992,217.14630929,8.452e-05,2]
[395368952,1764676371433,500.0,8.452e-05,2]
[395368953,1764676371732,500.0,8.452e-05,2]
[395368954,1764676372486,500.0,8.452e-05,2]
[395368955,1764676372966,500.0,8.452e-05,2]
[395368956,1764676373121,500.0,8.452e-05,2]
[395368957,1764676373538,500.0,8.452e-05,2]
[395368958,1764676373871,500.0,8.452e-05,2]
[395368959,1764676374205,500.0,8.452e-05,2]
[395368960,1764676374507,500.0,8.452e-05,2]
[395368961,1764676374916,500.0,8.452e-05,2]
[395368962,1764676374947,500.0,8.452e-05,2]
[395368963,1764676375029,336.54784215,8.452e-05,2]
[395368964,1764676375055,163.45215785,8.452e-05,2]
[395368965,1764676375086,500.0,8.452e-05,2]
[395368966,1764676375117,500.0,8.452e-05,2]
[395368967,1764676375171,500.0,8.452e-05,2]
[395368968,1764676375227,179.08873269,8.452e-05,2]
[395368969,1764676375262,500.0,8.452e-05,2]
[395368970,1764676375996,182.60404871,8.452e-05,2]
[395368971,1764676376086,-1200.0,8.452e-05,2]
[395368973,1764676400936,-500.0,8.452e-05,2]
[395368974,1764676400961,-476.7682238,8.452e-05,2]
[395368975,1764676400988,-500.0,8.452e-05,2]
[395368976,1764676401014,-500.0,8.452e-05,2]
[395368977,1764676401039,-500.0,8.452e-05,2]
[395368978,1764676401066,-500.0,8.452e-05,2]
[395368979,1764676401101,-500.0,8.452e-05,2]
[395368980,1764676401131,-500.0,8.452e-05,2]
[395368981,1764676401159,-500.0,8.452e-05,2]
[395368982,1764676401186,-500.0,8.452e-05,2]
[395368983,1764676401313,-500.0,8.452e-05,2]
[395368984,1764676401340,-500.0,8.452e-05,2]
[395368985,1764676401368,-500.0,8.452e-05,2]
[395368986,1764676401394,-500.0,8.452e-05,2]
[395368987,1764676401421,-500.0,8.452e-05,2]
[395368988,1764676401448,-500.0,8.452e-05,2]
[395368989,1764676401474,-500.0,8.452e-05,2]
[395368990,1764676401694,-500.0,8.452e-05,2]
[395368991,1764676401722,-486.03329823,8.452e-05,2]
[395368992,1764676401751,-500.0,8.452e-05,2]
[395368993,1764676413167,-500.0,8.452e-05,2]
[395368994,1764676413198,-500.0,8.452e-05,2]
[395368995,1764676413227,-500.0,8.452e-05,2]
[395368996,1764676413265,-500.0,8.452e-05,2]
[395368997,1764676413293,-500.0,8.452e-05,2]
[395368998,1764676413325,-500.0,8.452e-05,2]
[395368999,1764676413353,-500.0,8.452e-05,2]
[395369000,1764676413381,-500.0,8.452e-05,2]
[395369001,1764676413410,-500.0,8.452e-05,2]
[395369002,1764676425515,-300.0,8.452e-05,2]
[395369003,1764676442708,300.0,8.452e-05,2]
[395369004,1764676451543,-7992.43338027,8.453e-05,2]
[395369005,1764676451732,-10000.01,8.453e-05,2]
[395369006,1764676478908,-10000.01,8.453e-05,2]
[395369008,1764676489209,-10000.01,8.453e-05,2]
[395369009,1764676494887,-408.76538026,8.368e-05,2]
[395369010,1764676497364,-275.80123763,8.368e-05,2]
[395369011,1764676501599,-1656.16825944,8.368e-05,2]
[395369012,1764676501623,-6687.67348112,8.368e-05,2]
[395369015,1764676515551,-179.17767833,8.283e-05,2]
[395369016,1764676515579,-179.17767833,8.367e-05,2]
[395369017,1764676515608,-971.42888711,8.448e-05,2]
[395369018,1764676515635,-300.0,8.452e-05,2]
[395369019,1764676515665,-300.0,8.452e-05,2]
[395369020,1764676515693,-300.0,8.452e-05,2]
[395369021,1764676515722,-300.0,8.452e-05,2]
[395369022,1764676515750,-1200.0,8.452e-05,2]
[395369023,1764676515896,-2540.44151246,8.453e-05,2]
[395369024,1764676524696,-281.95289885,8.269e-05,2]
[395369025,1764676528621,-4210.52967378,8.269e-05,2]
[395369026,1764676528655,-1578.95065244,8.353e-05,2]
[395369027,1764676548663,-1176.70693957,8.186e-05,2]
[395369028,1764676548696,-1176.70693957,8.269e-05,2]
[395369029,1764676550501,1176.70693957,8.104e-05,2]
[395369031,1764676563236,185.76,2e-05,2]
[395369032,1764676563566,185.76,6e-05,2]
[395369033,1764676565601,300.0,8.268e-05,2]
[395369036,1764676571844,-300.0,8.352e-05,2]
[395369037,1764676573861,300.0,8.268e-05,2]
[395369038,1764676589326,5306.99013157,8.269e-05,2]
[395369039,1764676592269,452.03992208,8.352e-05,2]
[395369040,1764676593415,-2092.75300678,8.353e-05,2]
[395369041,1764676593603,-10000.01,8.353e-05,2]
[395369042,1764676593647,349.42754437,8.352e-05,2]
[395369043,1764676593678,619.15943113,8.352e-05,2]
[395369044,1764676593744,500.0,8.352e-05,2]
[395369045,1764676593815,500.0,8.352e-05,2]
[395369046,1764676593877,296.43112927,8.352e-05,2]
[395369047,1764676593951,500.0,8.352e-05,2]
[395369049,1764676597152,575.96184158,8.269e-05,2]
[395369050,1764676597176,1461.59911948,8.269e-05,2]
[395369051,1764676603156,-5197.43093417,8.353e-05,2]
[395369052,1764676603351,-10000.01,8.353e-05,2]
[395369053,1764676603655,-10000.01,8.353e-05,2]
[395369054,1764676603892,-10000.01,8.353e-05,2]
[395369055,1764676604134,-10000.01,8.353e-05,2]
[395369056,1764676604313,-10000.01,8.353e-05,2]
[395369057,1764676604501,-10000.01,8.353e-05,2]
[395369058,1764676604762,-10000.01,8.353e-05,2]
[395369059,1764676655092,-500.0,8.352e-05,2]
[395369060,1764676655123,-529.97039605,8.352e-05,2]
[395369061,1764676655153,-500.0,8.352e-05,2]
[395369062,1764676655182,-500.0,8.352e-05,2]
[395369063,1764676655211,-500.0,8.352e-05,2]
[395369064,1764676655240,-500.0,8.352e-05,2]
[395369065,1764676655268,-500.0,8.352e-05,2]
[395369066,1764676655299,-500.0,8.352e-05,2]
[395369067,1764676655330,-500.0,8.352e-05,2]
[395369068,1764676655361,-440.0692079,8.352e-05,2]
[395369069,1764676655500,-59.9307921,8.352e-05,2]
[395369070,1764676655530,-500.0,8.352e-05,2]
[395369071,1764676655558,-500.0,8.352e-05,2]
[395369072,1764676655586,-234.30363421,8.352e-05,2]
[395369073,1764676655617,-500.0,8.352e-05,2]
[395369074,1764676655647,-500.0,8.352e-05,2]
[395369075,1764676656122,5411.54114738,8.268e-05,2]
[395369076,1764676656143,1852.73288288,8.268e-05,2]
[395369081,1764676660504,500.0,8.352e-05,2]
[395369082,1764676660561,352.22680828,8.352e-05,2]
[395369083,1764676661582,500.0,8.352e-05,2]
[395369084,1764676661610,500.0,8.352e-05,2]
[395369085,1764676661656,500.0,8.352e-05,2]
[395369086,1764676661683,500.0,8.352e-05,2]
[395369087,1764676661719,500.0,8.352e-05,2]
[395369088,1764676661778,500.0,8.352e-05,2]
[395369089,1764676661835,339.72872824,8.352e-05,2]
[395369090,1764676664093,500.0,8.352e-05,2]
[395369092,1764676679089,300.0,8.268e-05,2]
[395369093,1764676682725,151.55,2e-05,2]
[395369094,1764676682958,151.55,2.8e-05,2]
[395369095,1764676683299,151.55,3.6e-05,2]
[395369096,1764676683602,151.55,4.4e-05,2]
[395369097,1764676683918,151.55,5.2e-05,2]
[395369098,1764676684230,151.55,6e-05,2]
[395369099,1764676684508,-1200.0,8.352e-05,2]
[395369100,1764676684540,-300.0,8.352e-05,2]
[395369101,1764676684623,151.55,6.8e-05,2]
[395369102,1764676684965,151.55,7.6e-05,2]
[395369103,1764676687616,151.55,5.148e-05,2]
[395369104,1764676688338,151.5,2e-05,2]
[395369105,1764676690234,-226.16381632,8.353e-05,2]
[395369106,1764676702803,6393.86,8.269e-05,2]
[395369107,1764676702824,10000.01,8.269e-05,2]
[395369108,1764676702846,10000.01,8.269e-05,2]
[395369109,1764676702867,4645.68071552,8.269e-05,2]
[395369110,1764676710665,2580.59657493,8.269e-05,2]
[395369111,1764676714287,-2608.21314277,8.353e-05,2]
[395369112,1764676714301,-10000.01,8.353e-05,2]
[395369113,1764676714314,-10000.01,8.353e-05,2]
[395369114,1764676714411,-10000.01,8.353e-05,2]
[395369117,1764676725201,-10000.01,8.353e-05,2]
[395369118,1764676725402,-10000.01,8.353e-05,2]
[395369119,1764676742129,250.0,0.0002,30]
[395369120,1764676749692,-220.0,8.268e-05,2]
[395369121,1764676750052,157.94,1.8e-05,2]
[395369123,1764676802211,358.29,1.8e-05,2]
[395369124,1764676802643,358.29,2e-05,2]
[395369125,1764676802974,358.29,2.3e-05,2]
[395369126,1764676803272,358.29,2.5e-05,2]
[395369127,1764676803573,358.29,2.8e-05,2]
[395369128,1764676803867,358.29,3e-05,2]
[395369129,1764676804184,358.29,3.3e-05,2]
[395369130,1764676804528,358.29,3.5e-05,2]
[395369131,1764676804887,358.29,3.8e-05,2]
[395369132,1764676805212,358.29,4e-05,2]
[395369134,1764676805563,358.29,4.3e-05,2]
[395369135,1764676805876,358.29,4.5e-05,2]
[395369136,1764676806183,358.29,4.8e-05,2]
[395369137,1764676806493,358.29,5e-05,2]
[395369138,1764676806798,358.29,5.3e-05,2]
[395369139,1764676807095,358.29,5.5e-05,2]
[395369140,1764676807425,358.29,5.8e-05,2]
[395369141,1764676807725,358.29,6e-05,2]
[395369142,1764676808010,358.29,6.3e-05,2]
[395369143,1764676808422,358.29,6.5e-05,2]
[395369144,1764676808909,358.29,6.8e-05,2]
[395369145,1764676809047,358.29,7e-05,2]
[395369146,1764676809360,358.29,7.3e-05,2]
[395369147,1764676809680,358.29,7.5e-05,2]
[395369148,1764676809970,358.29,7.8e-05,2]
[395369149,1764676810482,358.29,8e-05,2]
[395369150,1764676818606,2155.8325588,7.425e-05,2]
[395369151,1764676820439,358.22,1.75e-05,2]
[395369158,1764676871733,193.48,1.8e-05,2]
[395369159,1764676872068,193.48,2e-05,2]
[395369160,1764676872377,193.48,2.3e-05,2]
[395369161,1764676872733,193.48,2.5e-05,2]
[395369162,1764676873035,193.48,2.8e-05,2]
[395369163,1764676873360,193.48,3e-05,2]
[395369164,1764676873670,193.48,3.3e-05,2]
[395369165,1764676873971,193.48,3.5e-05,2]
[395369166,1764676874322,193.48,3.8e-05,2]
[395369167,1764676874678,193.48,4e-05,2]
[395369168,1764676875031,193.48,4.3e-05,2]
[395369169,1764676875362,193.48,4.5e-05,2]
[395369170,1764676875732,193.48,4.8e-05,2]
[395369171,1764676876037,193.48,5e-05,2]
[395369172,1764676876346,193.48,5.3e-05,2]
[395369173,1764676876650,193.48,5.5e-05,2]
[395369174,1764676876954,193.48,5.8e-05,2]
[395369175,1764676877320,193.48,6e-05,2]
[395369176,1764676877988,193.48,6.3e-05,2]
[395369177,1764676878402,193.48,6.5e-05,2]
[395369178,1764676878787,193.48,6.8e-05,2]
[395369179,1764676879168,193.48,7e-05,2]
[395369180,1764676879531,193.48,7.3e-05,2]
[395369181,1764676879874,193.48,7.5e-05,2]
[395369182,1764676880208,193.48,7.8e-05,2]
[395369183,1764676880513,193.48,8e-05,2]
[395369188,1764676931711,3892.2444106,7.296e-05,2]
[395369189,1764676931844,265.42,1.8e-05,2]
[395369190,1764676932136,265.42,2e-05,2]
[395369191,1764676932483,265.42,2.3e-05,2]
[395369192,1764676933900,265.42,2.5e-05,2]
[395369193,1764676934197,265.42,2.8e-05,2]
[395369196,1764676934884,265.42,3e-05,2]
[395369197,1764676934965,265.42,3.3e-05,2]
[395369198,1764676935259,265.42,3.5e-05,2]
[395369199,1764676935558,265.42,3.8e-05,2]
[395369200,1764676935870,265.42,4e-05,2]
[395369201,1764676936200,265.42,4.3e-05,2]
[395369202,1764676936568,265.42,4.5e-05,2]
[395369203,1764676936868,265.42,4.8e-05,2]
[395369204,1764676937178,265.42,5e-05,2]
[395369205,1764676937486,265.42,5.3e-05,2]
[395369206,1764676937778,265.42,5.5e-05,2]
[395369207,1764676938104,265.42,5.8e-05,2]
[395369208,1764676938456,265.42,6e-05,2]
[395369209,1764676938784,265.42,6.3e-05,2]
[395369210,1764676939244,265.42,6.5e-05,2]
[395369211,1764676939456,265.42,6.8e-05,2]
[395369212,1764676939873,265.42,7e-05,2]
[395369213,1764676940246,265.42,7.3e-05,2]
[395369214,1764676940588,265.42,7.5e-05,2]
[395369215,1764676941014,265.42,7.8e-05,2]
[395369216,1764676941394,265.42,8e-05,2]
[395369225,1764676978041,1018.08,0.0002,30]
[395369226,1764676991524,230.89,1.8e-05,2]
[395369227,1764676992038,230.89,2e-05,2]
[395369228,1764676992386,230.89,2.3e-05,2]
[395369229,1764676992685,230.89,2.5e-05,2]
[395369230,1764676992997,230.89,2.8e-05,2]
[395369231,1764676993304,230.89,3e-05,2]
[395369232,1764676993616,230.89,3.3e-05,2]
[395369233,1764676993944,230.89,3.5e-05,2]
[395369234,1764676994243,183.1276209,3.8e-05,2]
[395369235,1764676994273,47.7623791,3.8e-05,2]
[395369236,1764676994566,230.89,4e-05,2]
[395369237,1764676994879,230.89,4.3e-05,2]
[395369238,1764676995253,230.89,4.5e-05,2]
[395369239,1764676999485,230.89,4.8e-05,2]
[395369240,1764676999791,230.89,5e-05,2]
[395369241,1764677000096,230.89,5.3e-05,2]
[395369242,1764677000395,230.89,5.5e-05,2]
[395369243,1764677000801,230.89,5.8e-05,2]
[395369244,1764677001168,230.89,6e-05,2]
[395369245,1764677001492,230.89,6.3e-05,2]
[395369246,1764677001812,230.89,6.5e-05,2]
[395369247,1764677002121,230.89,6.8e-05,2]
[395369248,1764677002613,230.89,7e-05,2]
[395369251,1764677020238,-230.89,7.227e-05,2]
[395369252,1764677020260,-230.89,7.3e-05,2]
[395369253,1764677020282,-43.22,7.5e-05,2]
[395369260,1764677026203,161.0,5.5e-07,2]
[395369263,1764677027489,-211.72877927,7.155e-05,2]
[395369264,1764677035739,-230.89,7.083e-05,2]
[395369265,1764677035760,-19.16122073,7.155e-05,2]
[395369266,1764677035781,-128.03636894,7.5e-05,2]
[395369267,1764677053688,150.31,1.8e-05,2]
[395369268,1764677054023,150.31,2e-05,2]
[395369269,1764677054529,150.31,2.3e-05,2]
[395369270,1764677054892,150.31,2.5e-05,2]
[395369271,1764677055216,150.31,2.8e-05,2]
[395369272,1764677055525,150.31,3e-05,2]
[395369273,1764677055832,150.31,3.3e-05,2]
[395369274,1764677056310,150.31,3.5e-05,2]
[395369275,1764677056605,150.31,3.8e-05,2]
[395369276,1764677056905,150.31,4e-05,2]
[395369277,1764677057206,150.31,4.3e-05,2]
[395369278,1764677057509,150.31,4.6e-05,2]
[395369279,1764677057810,150.31,4.8e-05,2]
[395369280,1764677058108,150.31,5.1e-05,2]
[395369281,1764677058414,150.31,5.3e-05,2]
[395369282,1764677058874,150.31,5.6e-05,2]
[395369283,1764677059205,150.31,5.8e-05,2]
[395369284,1764677059499,150.31,6.1e-05,2]
[395369285,1764677059794,150.31,6.3e-05,2]
[395369286,1764677060084,150.31,6.6e-05,2]
[395369287,1764677060675,150.31,6.9e-05,2]
[395369288,1764677064716,-150.31,7.1e-05,2]
[395369289,1764677064739,-11.71735811,7.4e-05,2]
[395369297,1764677094702,-138.59264189,7.4e-05,2]
[395369298,1764677094723,-161.41485148,7.5e-05,2]
[395369299,1764677096897,-136.36297177,7.5e-05,2]
[395369300,1764677096921,-94.92072546,7.6e-05,2]
[395369303,1764677112227,152.53,1.8e-05,2]
[395369304,1764677112556,152.53,2.3e-05,2]
[395369305,1764677112857,152.53,2.8e-05,2]
[395369306,1764677114034,152.53,3.3e-05,2]
[395369307,1764677114172,152.53,3.8e-05,2]
[395369308,1764677114482,152.53,4.3e-05,2]
[395369309,1764677114805,152.53,4.8e-05,2]
[395369310,1764677115145,152.53,5.3e-05,2]
[395369311,1764677115484,152.53,5.8e-05,2]
[395369312,1764677115875,152.53,6.3e-05,2]
[395369313,1764677116169,152.53,6.9e-05,2]
[395369343,1764677139671,-152.53,7.253e-05,2]
[395369344,1764677139694,-152.53,7.326e-05,2]
[395369345,1764677139718,-13.07235162,7.4e-05,2]
[395369364,1764677168085,151.59,1.8e-05,2]
[395369365,1764677168472,151.59,2.7e-05,2]
[395369366,1764677168817,151.59,3.6e-05,2]
[395369367,1764677169135,151.59,4.6e-05,2]
[395369368,1764677169495,151.59,5.5e-05,2]
[395369369,1764677169783,151.59,6.5e-05,2]
[395369372,1764677188206,151.59,7.326e-05,2]
[395369376,1764677197697,151.59,7.326e-05,2]
[395369378,1764677213240,151.59,7.326e-05,2]
[395369382,1764677221178,151.59,7.326e-05,2]
[395369386,1764677227162,151.59,1.8e-05,2]
[395369387,1764677227531,151.59,3.5e-05,2]
[395369388,1764677227855,151.59,5.3e-05,2]
[395369389,1764677228157,151.59,7e-05,2]
[395369398,1764677245415,166.62236317,7.763e-05,2]
[395369406,1764677258524,166.62236317,7.763e-05,2]
[395369415,1764677274348,166.62236317,7.763e-05,2]
[395369419,1764677281744,245.0,0.0002,30]
[395369421,1764677282686,166.62236317,7.763e-05,2]
[395369423,1764677287379,151.59,2e-05,2]
[395369424,1764677287701,151.59,6e-05,2]
[395369428,1764677297878,166.62236317,7.763e-05,2]
[395369441,1764677308100,166.62236317,7.763e-05,2]
[395369442,1764677323086,166.62236317,7.763e-05,2]
[395369443,1764677331485,166.62236317,7.763e-05,2]
[395369444,1764677345286,151.59,2e-05,2]
[395369445,1764677346581,166.62236317,7.763e-05,2]
[395369446,1764677355325,166.62236317,7.763e-05,2]
[395369447,1764677360130,-166.62236317,7.841e-05,2]
[395369448,1764677360150,-1001.20470569,8e-05,2]
[395369449,1764677360171,-850.3996875,8e-05,2]
[395369450,1764677363437,166.62236317,7.763e-05,2]
[395369451,1764677364033,-149.6003125,8e-05,2]
[395369452,1764677364055,-241.73941899,8e-05,2]
[395369453,1764677364077,-108.66026851,8e-05,2]
[395369454,1764677405362,151.59,2e-05,2]
[395369455,1764677415004,769.74263238,8.022e-05,2]
[395369456,1764677423223,769.74263238,8.022e-05,2]
[395369460,1764677431939,-769.74263238,8.103e-05,2]
[395369461,1764677431949,-291.82226678,8.144e-05,2]
[395369462,1764677431958,-358.63510084,8.185e-05,2]
[395369497,1764677438001,-737.4058224,8.185e-05,2]
[395369498,1764677438012,-103.95907676,8.185e-05,2]
[395369499,1764677438022,-218.0,8.185e-05,2]
[395369500,1764677438032,-94.71843968,8.186e-05,2]
[395369501,1764677438044,-90.10956032,8.186e-05,2]
[395369502,1764677438053,-360.10877048,8.186e-05,2]
[395369503,1764677438064,-41.77422952,8.186e-05,2]
[395369504,1764677438073,-206.76552777,8.253e-05,2]
[395369505,1764677438083,-301.7915627,8.26e-05,2]
[395369506,1764677438092,-7.18853098,8.27e-05,2]
[395369531,1764677440601,-294.60303172,8.27e-05,2]
[395369532,1764677440612,-301.7915627,8.27e-05,2]
[395369533,1764677440622,-301.7915627,8.27e-05,2]
[395369534,1764677440631,-300.0,8.309e-05,2]
[395369535,1764677440641,-300.0,8.309e-05,2]
[395369536,1764677440651,-300.0,8.309e-05,2]
[395369537,1764677440660,-300.0,8.309e-05,2]
[395369538,1764677440670,-1200.0,8.309e-05,2]
[395369539,1764677440679,-606.3401448,8.31e-05,2]
[395369540,1764677440689,-301.7915627,8.31e-05,2]
[395369541,1764677440698,-301.7915627,8.31e-05,2]
[395369542,1764677440707,-301.7915627,8.31e-05,2]
[395369543,1764677440717,-603.5831254,8.31e-05,2]
[395369544,1764677440727,-281.5872873,8.31e-05,2]
[395369545,1764677440736,-201.93286099,8.348e-05,2]
[395369546,1764677440745,-500.0,8.348e-05,2]
[395369547,1764677440755,-500.0,8.348e-05,2]
[395369548,1764677440764,-500.0,8.348e-05,2]
[395369549,1764677440774,-500.0,8.348e-05,2]
[395369550,1764677440783,-500.0,8.348e-05,2]
[395369551,1764677440792,-254.48022154,8.348e-05,2]
[395369552,1764677440802,-316.42794545,8.352e-05,2]
[395369553,1764677440811,-500.0,8.352e-05,2]
[395369554,1764677440821,-541.16261019,8.352e-05,2]
[395369555,1764677440830,-14593.7426401,8.352e-05,2]
[395369556,1764677440840,-108341.23777345,8.353e-05,2]
[395369557,1764677441062,-2e-08,8.353e-05,2]
[395369562,1764677443119,-898.18615712,8.187e-05,2]
[395369563,1764677443128,-8221.81384288,8.353e-05,2]
[395369564,1764677443226,-300.0,8.353e-05,2]
[395369565,1764677443282,-1030.40296552,8.353e-05,2]
[395369566,1764677443293,-892.72318,8.353e-05,2]
[395369610,1764677446098,-6071.99999998,8.353e-05,2]
[395370322,1764677460259,529.72120639,8.103e-05,2]
[395370323,1764677471875,-1472.67698666,8.186e-05,2]
[395370324,1764677472617,-10000.01,8.186e-05,2]
[395370325,1764677472631,-6758.75698523,8.186e-05,2]
[395370326,1764677504003,300.0,8.103e-05,2]
[395370327,1764677625822,-300.0,8.185e-05,2]
[395370328,1764677625850,-221.49956182,8.252e-05,2]
[395370329,1764677625882,-1200.0,8.252e-05,2]
[395370330,1764677625911,-300.0,8.252e-05,2]
[395370331,1764677626018,-5657.01087636,8.253e-05,2]
[395370332,1764677626042,-10000.01,8.253e-05,2]
[395370333,1764677626119,-10000.01,8.253e-05,2]
[395370334,1764677626220,-10000.01,8.253e-05,2]
[395370335,1764677626343,-10000.01,8.253e-05,2]
[395370336,1764677626665,-10000.01,8.253e-05,2]
[395370337,1764677626783,-10000.01,8.253e-05,2]
[395370338,1764677626886,-10000.01,8.253e-05,2]
[395370339,1764677626988,-10000.01,8.253e-05,2]
[395370340,1764677630867,-10000.01,8.253e-05,2]
[395370341,1764677630959,-10000.01,8.253e-05,2]
[395370342,1764677665178,-300.0,8.006e-05,2]
[395370343,1764677665208,-300.0,8.087e-05,2]
[395370344,1764677665238,-300.0,8.169e-05,2]